fUST/lending_fUST_20250226
["ID","MTS","AMOUNT","RATE_DAILY","PERIOD"]
[354581199,1740580303304,-4905.74,0.00055342,120]
[354581200,1740580303389,-1557.42,0.00055342,120]
[354581201,1740580303473,-500.0,0.00055342,120]
[354581202,1740580303553,-3013.44,0.00055342,120]
[354581203,1740580303623,-2093.64,0.00055342,120]
[354581204,1740580303699,-553.74,0.00055342,120]
[354581205,1740580303776,-425.40707381,0.00055342,120]
[354581206,1740580303853,-500.0,0.00055342,120]
[354581207,1740580303929,-500.0,0.00055342,120]
[354581208,1740580303995,-500.0,0.00055342,120]
[354581209,1740580304067,-604.52516169,0.00055342,120]
[354581210,1740580304135,-500.0,0.00055342,120]
[354581211,1740580304207,-1847.08,0.00055342,120]
[354581212,1740580304280,-2995.29,0.00055342,120]
[354581213,1740580304349,-878.54,0.00055342,120]
[354581214,1740580304420,-500.0,0.00055342,120]
[354581215,1740580304490,-6152.07,0.00055342,120]
[354581216,1740580304570,-500.0,0.00055342,120]
[354581217,1740580304641,-634.32,0.00055342,120]
[354581218,1740580304714,-760.57,0.00055342,120]
[354581219,1740580304790,-2779.31,0.00055342,120]
[354581220,1740580304862,-861.07,0.00055342,120]
[354581221,1740580304939,-1058.22,0.00055342,120]
[354581222,1740580305007,-1650.62,0.00055342,120]
[354581223,1740580305082,-1067.15,0.00055342,120]
[354581224,1740580305153,-500.0,0.00055342,120]
[354581225,1740580305224,-500.0,0.00055342,120]
[354581226,1740580305300,-2131.56,0.00055342,120]
[354581227,1740580305379,-1097.51,0.00055342,120]
[354581228,1740580305456,-500.0,0.00055342,120]
[354581229,1740580305533,-520.67,0.00055342,120]
[354581230,1740580305613,-533.62805799,0.00055342,120]
[354581231,1740580305695,-1169.47,0.00055342,120]
[354581232,1740580305766,-962.58,0.00055342,120]
[354581233,1740580305834,-1172.67,0.00055342,120]
[354581234,1740580305908,-229.43107481,0.00055342,120]
[354581235,1740580305981,-885.16,0.00055342,120]
[354581236,1740580306075,-4042.67,0.00055342,120]
[354581237,1740580306146,-16452.14,0.00055342,120]
[354581238,1740580306218,-500.0,0.00055342,120]
[354581239,1740580306284,-1629.11,0.00055342,120]
[354581240,1740580306353,-1577.6,0.00055342,120]
[354581241,1740580306421,-1349.01,0.00055342,120]
[354581242,1740580306495,-1000.0,0.00055342,120]
[354581243,1740580306570,-500.0,0.00055342,120]
[354581244,1740580306648,-500.0,0.00055342,120]
[354581245,1740580306722,-500.0,0.00055342,120]
[354581246,1740580306793,-1725.58,0.00055342,120]
[354581247,1740580306857,-500.0,0.00055342,120]
[354581248,1740580306922,-2320.19,0.00055342,120]
[354581249,1740580306992,-500.0,0.00055342,120]
[354581250,1740580307063,-1380.1,0.00055342,120]
[354581251,1740580307137,-500.0,0.00055342,120]
[354581252,1740580307219,-500.0,0.00055342,120]
[354581253,1740580307291,-500.0,0.00055342,120]
[354581254,1740580307366,-10920.74,0.00055342,120]
[354581255,1740580307438,-7146.14,0.00055342,120]
[354581256,1740580307520,-689.91,0.0005589,120]
[354581257,1740580307591,-500.0,0.0005589,120]
[354581258,1740580307660,-841.46,0.0005589,120]
[354581259,1740580307738,-4089.66,0.0005589,120]
[354581260,1740580307809,-500.0,0.0005589,120]
[354581261,1740580307879,-2546.7,0.0005589,120]
[354581262,1740580307947,-1286.43,0.0005589,120]
[354581263,1740580308015,-786.34,0.0005589,30]
[354581264,1740580308082,-838.0,0.0005589,120]
[354581265,1740580308155,-3147.16,0.0005589,120]
[354581266,1740580308227,-500.0,0.0005589,120]
[354581267,1740580308298,-1547.26,0.0005589,120]
[354581268,1740580308368,-500.0,0.0005589,120]
[354581269,1740580308449,-2660.56,0.0005589,120]
[354581270,1740580308528,-500.0,0.0005589,120]
[354581271,1740580308610,-500.0,0.0005589,120]
[354581272,1740580308689,-500.0,0.0005589,120]
[354581273,1740580308769,-508.18512307,0.0005589,120]
[354581274,1740580308845,-587.06,0.0005589,120]
[354581275,1740580308925,-344.60871123,0.0005589,120]
[354581276,1740580309009,-674.16,0.0005589,120]
[354581277,1740580309083,-1022.06,0.0005589,120]
[354581278,1740580309165,-500.0,0.0005589,120]
[354581279,1740580309247,-1683.74,0.0005589,120]
[354581280,1740580309321,-500.0,0.0005589,120]
[354581281,1740580309396,-500.0,0.0005589,120]
[354581282,1740580309466,-500.0,0.0005589,120]
[354581283,1740580309538,-491.01044713,0.0005589,120]
[354581284,1740580309614,-500.0,0.0005589,120]
[354581285,1740580309695,-561.89,0.0005589,120]
[354581286,1740580309769,-584.03,0.0005589,120]
[354581287,1740580309846,-3412.47,0.0005589,120]
[354581288,1740580309916,-613.39,0.0005589,120]
[354581289,1740580309994,-500.0,0.0005589,120]
[354581290,1740580310062,-755.26,0.0005589,120]
[354581291,1740580310130,-500.0,0.0005589,120]
[354581292,1740580310197,-500.0,0.0005589,120]
[354581293,1740580310269,-2130.93,0.0005589,120]
[354581294,1740580310340,-502.7453557,0.0005589,120]
[354581295,1740580310408,-500.0,0.0005589,120]
[354581296,1740580310471,-756.88,0.0005589,120]
[354581297,1740580310543,-500.0,0.0005589,120]
[354581298,1740580310614,-1758.0,0.0005589,120]
[354581299,1740580310689,-500.0,0.0005589,120]
[354581300,1740580310763,-573.97,0.0005589,120]
[354581301,1740580310834,-500.0,0.0005589,120]
[354581302,1740580310909,-1293.56,0.0005589,120]
[354581303,1740580310978,-538.92,0.0005589,120]
[354581304,1740580311048,-1059.64,0.0005589,120]
[354581305,1740580311116,-500.0,0.0005589,120]
[354581306,1740580311185,-3370.3,0.0005589,120]
[354581307,1740580311257,-500.0,0.0005589,120]
[354581308,1740580311335,-22791.47,0.0005589,120]
[354581309,1740580311411,-4534.2,0.0005589,120]
[354581310,1740580311481,-500.32861608,0.0005589,120]
[354581311,1740580311567,-812.31,0.0005589,120]
[354581312,1740580311641,-500.0,0.0005589,120]
[354581313,1740580311714,-798.11,0.0005589,120]
[354581314,1740580311790,-2515.99,0.0005589,120]
[354581315,1740580311858,-595.96,0.0005589,60]
[354581316,1740580311928,-500.0,0.0005589,30]
[354581317,1740580312004,-500.0,0.0005589,120]
[354581318,1740580312072,-869.48,0.0005589,120]
[354581319,1740580312139,-1566.41,0.0005589,120]
[354581320,1740580312208,-500.0,0.0005589,120]
[354581321,1740580312279,-759.42,0.0005589,120]
[354581322,1740580312346,-500.0,0.0005589,120]
[354581323,1740580312418,-1097.91,0.0005589,120]
[354581324,1740580312491,-500.0,0.0005589,120]
[354581325,1740580312559,-656.97,0.0005589,120]
[354581326,1740580312632,-500.0,0.0005589,120]
[354581327,1740580312711,-500.0,0.0005589,120]
[354581328,1740580312779,-500.0,0.0005589,120]
[354581329,1740580312847,-1073.63,0.0005589,120]
[354581330,1740580312914,-502.12165178,0.0005589,120]
[354581331,1740580312986,-9030.67,0.0005589,120]
[354581332,1740580313142,-500.0,0.0005589,120]
[354581333,1740580313211,-1754.86,0.0005589,120]
[354581334,1740580313280,-500.0,0.0005589,120]
[354581335,1740580313349,-822.59,0.0005589,120]
[354581336,1740580313416,-715.41,0.0005589,120]
[354581337,1740580313487,-697.85,0.0005589,120]
[354581338,1740580313559,-500.0,0.0005589,120]
[354581339,1740580313632,-500.0,0.0005589,120]
[354581340,1740580313704,-500.0,0.0005589,120]
[354581341,1740580313774,-168.38681889,0.0005589,120]
[354581342,1740580313842,-2328.66,0.0005589,120]
[354581343,1740580313912,-821.85,0.0005589,120]
[354581344,1740580313980,-502.91,0.0005589,120]
[354581345,1740580314049,-500.0,0.0005589,120]
[354581346,1740580314118,-752.5,0.0005589,120]
[354581347,1740580314189,-691.85,0.0005589,120]
[354581348,1740580314258,-1767.84,0.0005589,120]
[354581349,1740580314322,-1669.91,0.0005589,120]
[354581350,1740580314398,-500.0,0.0005589,120]
[354581351,1740580314471,-880.56,0.0005589,120]
[354581352,1740580314541,-500.0,0.0005589,120]
[354581353,1740580314616,-2599.13,0.0005589,120]
[354581354,1740580314695,-2021.07,0.0005589,120]
[354581355,1740580314763,-535.05,0.0005589,120]
[354581356,1740580314834,-501.85,0.0005589,120]
[354581357,1740580314906,-500.0,0.0005589,120]
[354581358,1740580314978,-500.0,0.0005589,120]
[354581359,1740580315049,-545.98,0.0005589,120]
[354581360,1740580315119,-500.0,0.0005589,120]
[354581361,1740580315187,-500.0,0.0005589,120]
[354581362,1740580315250,-500.0,0.0005589,120]
[354581363,1740580315312,-1770.65,0.0005589,120]
[354581364,1740580315378,-4395.48,0.0005589,120]
[354581365,1740580315448,-14800.53,0.0005589,120]
[354581366,1740580315515,-658.69,0.0005589,120]
[354581367,1740580315579,-500.0,0.0005589,120]
[354581368,1740580315654,-1036.3,0.0005589,120]
[354581369,1740580315723,-863.39,0.0005589,120]
[354581370,1740580315794,-1288.22,0.0005589,120]
[354581371,1740580315871,-500.0,0.0005589,120]
[354581372,1740580315949,-500.0,0.0005589,120]
[354581373,1740580316020,-4905.74,0.0005589,120]
[354581374,1740580316093,-1557.42,0.0005589,120]
[354581375,1740580316166,-500.0,0.0005589,120]
[354581376,1740580316233,-3013.44,0.0005589,120]
[354581377,1740580316298,-2093.64,0.0005589,120]
[354581378,1740580316366,-553.74,0.0005589,120]
[354581379,1740580316440,-500.0,0.0005589,120]
[354581380,1740580316509,-588.1352269,0.0005589,120]
[354581381,1740580316575,-217.91203669,0.0005589,120]
[354581382,1740580316644,-500.0,0.0005589,120]
[354581383,1740580316713,-1847.08,0.0005589,120]
[354581384,1740580316780,-2995.29,0.0005589,120]
[354581385,1740580316852,-878.54,0.0005589,120]
[354581386,1740580316922,-500.0,0.0005589,120]
[354581387,1740580316994,-6152.07,0.0005589,120]
[354581388,1740580317057,-500.0,0.0005589,120]
[354581389,1740580317125,-634.32,0.0005589,120]
[354581390,1740580317196,-760.57,0.0005589,120]
[354581391,1740580317265,-2779.31,0.0005589,120]
[354581392,1740580317335,-861.07,0.0005589,120]
[354581393,1740580317418,-1058.22,0.0005589,120]
[354581394,1740580317489,-1650.62,0.0005589,120]
[354581395,1740580317563,-1067.15,0.0005589,120]
[354581396,1740580317640,-500.0,0.0005589,120]
[354581397,1740580317708,-220.68152387,0.0005589,120]
[354581398,1740580317779,-2131.56,0.0005589,120]
[354581399,1740580317850,-1097.51,0.0005589,120]
[354581400,1740580317920,-500.0,0.0005589,120]
[354581401,1740580317993,-520.67,0.0005589,120]
[354581402,1740580318063,-1169.47,0.0005589,120]
[354581403,1740580318134,-962.58,0.0005589,120]
[354581404,1740580318202,-1172.67,0.0005589,120]
[354581405,1740580318271,-885.16,0.0005589,120]
[354581406,1740580318341,-4042.67,0.0005589,120]
[354581407,1740580318411,-16452.14,0.0005589,120]
[354581408,1740580318489,-500.0,0.0005589,120]
[354581409,1740580318573,-1629.11,0.0005589,120]
[354581410,1740580318649,-1577.6,0.0005589,120]
[354581411,1740580318729,-1349.01,0.0005589,120]
[354581412,1740580318806,-1000.0,0.0005589,120]
[354581413,1740580318879,-500.0,0.0005589,120]
[354581414,1740580318952,-500.0,0.0005589,120]
[354581415,1740580319022,-500.0,0.0005589,120]
[354581416,1740580319310,-1725.58,0.0005589,120]
[354581417,1740580319378,-335.03568069,0.0005589,120]
[354581418,1740580319449,-2320.19,0.0005589,120]
[354581419,1740580319521,-500.0,0.0005589,120]
[354581420,1740580319602,-1380.1,0.0005589,120]
[354581421,1740580319680,-500.0,0.0005589,120]
[354581422,1740580319755,-512.28135351,0.0005589,120]
[354581423,1740580319827,-347.77721706,0.0005589,120]
[354581424,1740580319902,-10920.74,0.0005589,120]
[354581425,1740580319971,-7146.14,0.0005589,120]
[354581426,1740580320046,-500.0,0.00056266,39]
[354581427,1740580320124,-2268.0,0.000563,30]
[354581428,1740580320206,-5522.72,0.000563,30]
[354581429,1740580320286,-689.91,0.00056438,120]
[354581430,1740580320365,-500.0,0.00056438,120]
[354581431,1740580320444,-841.46,0.00056438,120]
[354581432,1740580320526,-4089.66,0.00056438,120]
[354581433,1740580320605,-500.0,0.00056438,120]
[354581434,1740580320683,-2546.7,0.00056438,120]
[354581435,1740580320757,-1286.43,0.00056438,120]
[354581436,1740580320834,-786.34,0.00056438,30]
[354581437,1740580320931,-838.0,0.00056438,120]
[354581438,1740580321005,-3147.16,0.00056438,120]
[354581439,1740580321075,-500.0,0.00056438,120]
[354581440,1740580321152,-1547.26,0.00056438,120]
[354581441,1740580321225,-500.0,0.00056438,120]
[354581442,1740580321301,-2660.56,0.00056438,120]
[354581443,1740580321374,-500.0,0.00056438,120]
[354581444,1740580321453,-500.0,0.00056438,120]
[354581445,1740580321529,-500.0,0.00056438,120]
[354581446,1740580321610,-587.06,0.00056438,120]
[354581447,1740580321695,-674.16,0.00056438,120]
[354581448,1740580321772,-1022.06,0.00056438,120]
[354581449,1740580321846,-441.70924259,0.00056438,120]
[354581450,1740580321927,-1683.74,0.00056438,120]
[354581451,1740580322013,-500.0,0.00056438,120]
[354581452,1740580322095,-500.0,0.00056438,120]
[354581453,1740580322171,-504.65490974,0.00056438,120]
[354581454,1740580322246,-500.0,0.00056438,120]
[354581455,1740580322318,-561.89,0.00056438,120]
[354581456,1740580322391,-584.03,0.00056438,120]
[354581457,1740580322461,-3412.47,0.00056438,120]
[354581458,1740580322536,-613.39,0.00056438,120]
[354581459,1740580322611,-500.0,0.00056438,120]
[354581460,1740580322688,-755.26,0.00056438,120]
[354581461,1740580322769,-500.0,0.00056438,120]
[354581462,1740580322847,-500.0,0.00056438,120]
[354581463,1740580322925,-2130.93,0.00056438,120]
[354581464,1740580322995,-617.15233253,0.00056438,120]
[354581465,1740580323072,-756.88,0.00056438,120]
[354581466,1740580323151,-500.0,0.00056438,120]
[354581467,1740580323231,-1758.0,0.00056438,120]
[354581468,1740580323312,-500.0,0.00056438,120]
[354581469,1740580323400,-573.97,0.00056438,120]
[354581470,1740580323486,-500.0,0.00056438,120]
[354581471,1740580323568,-1293.56,0.00056438,120]
[354581472,1740580323654,-538.92,0.00056438,120]
[354581473,1740580323735,-1059.64,0.00056438,120]
[354581474,1740580323817,-500.0,0.00056438,120]
[354581475,1740580323898,-3370.3,0.00056438,120]
[354581476,1740580323980,-500.0,0.00056438,120]
[354581477,1740580324062,-22791.47,0.00056438,120]
[354581478,1740580324142,-4534.2,0.00056438,120]
[354581479,1740580324188,-812.31,0.00056438,120]
[354581480,1740580324236,-500.0,0.00056438,120]
[354581481,1740580324280,-798.11,0.00056438,120]
[354581482,1740580324356,-2515.99,0.00056438,120]
[354581483,1740580324400,-595.96,0.00056438,60]
[354581484,1740580324445,-500.0,0.00056438,30]
[354581485,1740580324490,-500.0,0.00056438,120]
[354581486,1740580324535,-869.48,0.00056438,120]
[354581487,1740580324589,-1566.41,0.00056438,120]
[354581488,1740580324649,-500.0,0.00056438,120]
[354581489,1740580324694,-759.42,0.00056438,120]
[354581490,1740580324742,-500.0,0.00056438,120]
[354581491,1740580324788,-1097.91,0.00056438,120]
[354581492,1740580324834,-500.0,0.00056438,120]
[354581493,1740580324878,-656.97,0.00056438,120]
[354581494,1740580324921,-500.0,0.00056438,120]
[354581495,1740580324963,-500.0,0.00056438,120]
[354581496,1740580325007,-500.0,0.00056438,120]
[354581497,1740580325051,-1073.63,0.00056438,120]
[354581498,1740580325095,-9030.67,0.00056438,120]
[354581499,1740580325138,-500.0,0.00056438,120]
[354581500,1740580325182,-1754.86,0.00056438,120]
[354581501,1740580325229,-500.0,0.00056438,120]
[354581502,1740580325274,-822.59,0.00056438,120]
[354581503,1740580325318,-715.41,0.00056438,120]
[354581504,1740580325362,-697.85,0.00056438,120]
[354581505,1740580325406,-500.0,0.00056438,120]
[354581506,1740580325448,-500.0,0.00056438,120]
[354581507,1740580325490,-500.0,0.00056438,120]
[354581508,1740580325535,-2328.66,0.00056438,120]
[354581509,1740580325579,-821.85,0.00056438,120]
[354581510,1740580325623,-502.91,0.00056438,120]
[354581511,1740580325668,-525.21812275,0.00056438,120]
[354581512,1740580325712,-752.5,0.00056438,120]
[354581513,1740580325755,-691.85,0.00056438,120]
[354581514,1740580325799,-1767.84,0.00056438,120]
[354581515,1740580325844,-1669.91,0.00056438,120]
[354581516,1740580325889,-500.0,0.00056438,120]
[354581517,1740580325932,-880.56,0.00056438,120]
[354581518,1740580325979,-526.07781321,0.00056438,120]
[354581519,1740580326023,-2599.13,0.00056438,120]
[354581520,1740580326071,-2021.07,0.00056438,120]
[354581521,1740580326116,-535.05,0.00056438,120]
[354581522,1740580326160,-501.85,0.00056438,120]
[354581523,1740580326214,-500.0,0.00056438,120]
[354581524,1740580326264,-500.0,0.00056438,120]
[354581525,1740580326313,-545.98,0.00056438,120]
[354581526,1740580326360,-500.0,0.00056438,120]
[354581527,1740580326405,-500.0,0.00056438,120]
[354581528,1740580326452,-500.0,0.00056438,120]
[354581529,1740580326498,-1770.65,0.00056438,120]
[354581530,1740580326546,-4395.48,0.00056438,120]
[354581531,1740580326592,-14800.53,0.00056438,120]
[354581532,1740580326636,-658.69,0.00056438,120]
[354581533,1740580326682,-500.0,0.00056438,120]
[354581534,1740580326728,-1036.3,0.00056438,120]
[354581535,1740580326772,-863.39,0.00056438,120]
[354581536,1740580326818,-1288.22,0.00056438,120]
[354581537,1740580326862,-500.0,0.00056438,120]
[354581538,1740580326909,-500.0,0.00056438,120]
[354581539,1740580326957,-4905.74,0.00056438,120]
[354581540,1740580327001,-1557.42,0.00056438,120]
[354581541,1740580327043,-500.0,0.00056438,120]
[354581542,1740580327087,-3013.44,0.00056438,120]
[354581543,1740580327131,-2093.64,0.00056438,120]
[354581544,1740580327177,-553.74,0.00056438,120]
[354581545,1740580327224,-500.0,0.00056438,120]
[354581546,1740580327270,-500.0,0.00056438,120]
[354581547,1740580327316,-1847.08,0.00056438,120]
[354581548,1740580327363,-2995.29,0.00056438,120]
[354581549,1740580327409,-878.54,0.00056438,120]
[354581550,1740580327458,-500.0,0.00056438,120]
[354581551,1740580327506,-6152.07,0.00056438,120]
[354581552,1740580327554,-634.32,0.00056438,120]
[354581553,1740580327609,-760.57,0.00056438,120]
[354581554,1740580327659,-2779.31,0.00056438,120]
[354581555,1740580327708,-861.07,0.00056438,120]
[354581556,1740580327755,-1058.22,0.00056438,120]
[354581557,1740580327803,-1650.62,0.00056438,120]
[354581558,1740580327848,-1067.15,0.00056438,120]
[354581559,1740580327895,-500.0,0.00056438,120]
[354581560,1740580327942,-2131.56,0.00056438,120]
[354581561,1740580327991,-1097.51,0.00056438,120]
[354581562,1740580328036,-500.0,0.00056438,120]
[354581563,1740580328081,-520.67,0.00056438,120]
[354581564,1740580328124,-1169.47,0.00056438,120]
[354581565,1740580328169,-962.58,0.00056438,120]
[354581566,1740580328214,-1172.67,0.00056438,120]
[354581567,1740580328257,-885.16,0.00056438,120]
[354581568,1740580328301,-4042.67,0.00056438,120]
[354581569,1740580328345,-16452.14,0.00056438,120]
[354581570,1740580328393,-500.0,0.00056438,120]
[354581571,1740580328442,-1629.11,0.00056438,120]
[354581572,1740580328494,-1577.6,0.00056438,120]
[354581573,1740580328542,-1349.01,0.00056438,120]
[354581574,1740580328588,-1000.0,0.00056438,120]
[354581575,1740580328636,-383.61165378,0.00056438,120]
[354581576,1740580328687,-500.0,0.00056438,120]
[354581577,1740580328740,-500.0,0.00056438,120]
[354581578,1740580328908,-1725.58,0.00056438,120]
[354581579,1740580328955,-2320.19,0.00056438,120]
[354581580,1740580328999,-500.0,0.00056438,120]
[354581581,1740580329045,-1380.1,0.00056438,120]
[354581582,1740580329092,-500.0,0.00056438,120]
[354581583,1740580329138,-10920.74,0.00056438,120]
[354581584,1740580329183,-3919.8,0.000565,30]
[354581585,1740580329231,-349.9,0.000567,30]
[354581586,1740580329275,-689.91,0.00056986,120]
[354581587,1740580329319,-500.0,0.00056986,120]
[354581588,1740580329366,-841.46,0.00056986,120]
[354581589,1740580329411,-4089.66,0.00056986,120]
[354581590,1740580329457,-500.0,0.00056986,120]
[354581591,1740580329504,-2546.7,0.00056986,120]
[354581592,1740580329550,-1286.43,0.00056986,120]
[354581593,1740580329599,-786.34,0.00056986,30]
[354581594,1740580329647,-838.0,0.00056986,120]
[354581595,1740580329696,-3147.16,0.00056986,120]
[354581596,1740580329750,-500.0,0.00056986,120]
[354581597,1740580329799,-1547.26,0.00056986,120]
[354581598,1740580329849,-500.0,0.00056986,120]
[354581599,1740580329897,-2660.56,0.00056986,120]
[354581600,1740580329944,-500.0,0.00056986,120]
[354581601,1740580329994,-500.0,0.00056986,120]
[354581602,1740580330039,-612.01130235,0.00056986,120]
[354581603,1740580330085,-587.06,0.00056986,120]
[354581604,1740580330131,-674.16,0.00056986,120]
[354581605,1740580330178,-1022.06,0.00056986,120]
[354581606,1740580330225,-1683.74,0.00056986,120]
[354581607,1740580330272,-500.0,0.00056986,120]
[354581608,1740580330318,-448.24868411,0.00056986,120]
[354581609,1740580330363,-500.0,0.00056986,120]
[354581610,1740580330406,-561.89,0.00056986,120]
[354581611,1740580330451,-584.03,0.00056986,120]
[354581612,1740580330494,-3412.47,0.00056986,120]
[354581613,1740580330541,-613.39,0.00056986,120]
[354581614,1740580330595,-500.0,0.00056986,120]
[354581615,1740580330645,-755.26,0.00056986,120]
[354581616,1740580330692,-500.0,0.00056986,120]
[354581617,1740580330744,-500.0,0.00056986,120]
[354581618,1740580330793,-2130.93,0.00056986,120]
[354581619,1740580330838,-756.88,0.00056986,120]
[354581620,1740580330881,-500.0,0.00056986,120]
[354581621,1740580330926,-1758.0,0.00056986,120]
[354581622,1740580330972,-500.0,0.00056986,120]
[354581623,1740580331018,-573.97,0.00056986,120]
[354581624,1740580331065,-500.0,0.00056986,120]
[354581625,1740580331110,-1293.56,0.00056986,120]
[354581626,1740580331157,-538.92,0.00056986,120]
[354581627,1740580331208,-1059.64,0.00056986,120]
[354581628,1740580331256,-500.0,0.00056986,120]
[354581629,1740580331303,-3370.3,0.00056986,120]
[354581630,1740580331349,-500.0,0.00056986,120]
[354581631,1740580331396,-22791.47,0.00056986,120]
[354581632,1740580331442,-4534.2,0.00056986,120]
[354581633,1740580331489,-812.31,0.00056986,120]
[354581634,1740580331532,-500.0,0.00056986,120]
[354581635,1740580331576,-798.11,0.00056986,120]
[354581636,1740580331623,-2515.99,0.00056986,120]
[354581637,1740580331670,-595.96,0.00056986,60]
[354581638,1740580331718,-500.0,0.00056986,30]
[354581639,1740580331766,-500.0,0.00056986,120]
[354581640,1740580331816,-869.48,0.00056986,120]
[354581641,1740580331865,-1566.41,0.00056986,120]
[354581642,1740580331911,-500.0,0.00056986,120]
[354581643,1740580331958,-759.42,0.00056986,120]
[354581644,1740580332003,-509.0801078,0.00056986,120]
[354581645,1740580332048,-1097.91,0.00056986,120]
[354581646,1740580332094,-500.0,0.00056986,120]
[354581647,1740580332139,-656.97,0.00056986,120]
[354581648,1740580332187,-500.0,0.00056986,120]
[354581649,1740580332236,-500.0,0.00056986,120]
[354581650,1740580332281,-500.0,0.00056986,120]
[354581651,1740580332326,-1073.63,0.00056986,120]
[354581652,1740580332370,-9030.67,0.00056986,120]
[354581653,1740580332414,-500.0,0.00056986,120]
[354581654,1740580332460,-1754.86,0.00056986,120]
[354581655,1740580332504,-222.56033813,0.00056986,120]
[354581656,1740580332548,-822.59,0.00056986,120]
[354581657,1740580332591,-715.41,0.00056986,120]
[354581658,1740580332635,-697.85,0.00056986,120]
[354581659,1740580332680,-500.0,0.00056986,120]
[354581660,1740580332723,-500.0,0.00056986,120]
[354581661,1740580332765,-500.0,0.00056986,120]
[354581662,1740580333005,-2328.66,0.00056986,120]
[354581663,1740580333047,-821.85,0.00056986,120]
[354581664,1740580333096,-502.91,0.00056986,120]
[354581665,1740580333138,-752.5,0.00056986,120]
[354581666,1740580333180,-691.85,0.00056986,120]
[354581667,1740580333224,-1767.84,0.00056986,120]
[354581668,1740580333267,-1669.91,0.00056986,120]
[354581669,1740580333312,-500.0,0.00056986,120]
[354581670,1740580333356,-880.56,0.00056986,120]
[354581671,1740580333399,-2599.13,0.00056986,120]
[354581672,1740580333445,-2021.07,0.00056986,120]
[354581673,1740580333494,-535.05,0.00056986,120]
[354581674,1740580333540,-501.85,0.00056986,120]
[354581675,1740580333584,-500.0,0.00056986,120]
[354581676,1740580333634,-500.0,0.00056986,120]
[354581677,1740580333679,-545.98,0.00056986,120]
[354581678,1740580333725,-500.0,0.00056986,120]
[354581679,1740580333767,-500.0,0.00056986,120]
[354581680,1740580333811,-500.0,0.00056986,120]
[354581681,1740580333854,-1770.65,0.00056986,120]
[354581682,1740580333899,-4395.48,0.00056986,120]
[354581683,1740580333942,-658.69,0.00056986,120]
[354581684,1740580333989,-500.0,0.00056986,120]
[354581685,1740580334036,-14800.53,0.00056986,120]
[354581686,1740580334078,-1036.3,0.00056986,120]
[354581687,1740580334119,-863.39,0.00056986,120]
[354581688,1740580334161,-1288.22,0.00056986,120]
[354581689,1740580334204,-311.41681573,0.00056986,120]
[354581690,1740580334247,-500.0,0.00056986,120]
[354581691,1740580334289,-4905.74,0.00056986,120]
[354581692,1740580334329,-1557.42,0.00056986,120]
[354581693,1740580334371,-500.0,0.00056986,120]
[354581694,1740580334413,-3013.44,0.00056986,120]
[354581695,1740580334456,-2093.64,0.00056986,120]
[354581696,1740580334497,-553.74,0.00056986,120]
[354581697,1740580334538,-500.0,0.00056986,120]
[354581698,1740580334582,-500.0,0.00056986,120]